bitfinex-derivatives/quotes_SOLF0:USTF0_20250509
["timestamp","ask_amount","ask_price","bid_price","bid_amount"]
[1746818126967,61.48,171.31,171.25,1.16788321]
[1746818127166,30.4,171.31,171.25,1.16788321]
[1746818127466,30.4,171.31,171.23,5.8397]
[1746818127666,30.4,171.31,171.2,61.52]
[1746818128066,3.7106,171.37,171.2,61.52]
[1746818128369,15.41203571,171.32,171.19,1.9267]
[1746818128571,61.88,171.31,171.25,5.839]
[1746818128968,61.88,171.31,171.19,1.9267]
[1746818129165,67.7173,171.31,171.24,5.8394]
[1746818129362,61.88,171.31,171.2,30.42]
[1746818130268,61.88,171.31,171.25,5.8388]
[1746818130467,61.88,171.31,171.21,31.5]
[1746818130667,61.88,171.31,171.21,35.3524]
[1746818131368,61.88,171.31,171.26,5.8386]
[1746818131770,61.88,171.31,171.21,3.8524]
[1746818131968,61.88,171.31,171.15,1.0]
[1746818132167,15.41203571,171.28,171.15,358.0]
[1746818132370,15.41203571,171.21,171.15,1.0]
[1746818132672,63.54,171.21,171.15,1.0]
[1746818133174,5.8412,171.19,171.15,1.0]
[1746818133367,78.95203571,171.21,171.15,1.0]
[1746818133670,5.8411,171.19,171.15,1.0]
[1746818133868,63.54,171.21,171.15,1.0]
[1746818134070,15.41203571,171.18,171.08,3.8484]
[1746818134270,15.41203571,171.2,171.11,5.8435]
[1746818134471,69.54,171.2,171.08,3.8484]
[1746818134869,69.54,171.2,171.12,5.8435]
[1746818135075,71.46,171.2,171.08,3.8484]
[1746818135473,5.8415,171.18,171.08,3.8484]
[1746818135975,5.8418,171.17,171.11,5.8438]
[1746818136275,15.41203571,171.21,171.08,3.8484]
[1746818136476,36.98,171.2,171.15,5.8423]
[1746818137067,3.7335,171.26,171.08,3.8484]
[1746818137266,37.0,171.25,171.09,37.48]
[1746818137470,74.5,171.25,171.09,37.48]
[1746818137670,37.0,171.24,171.1,1.9435]
[1746818138079,37.0,171.24,171.2,5.8406]
[1746818138270,37.0,171.25,171.1,1.9435]
[1746818138670,52.41203571,171.25,171.1,1.9435]
[1746818139174,5.8401,171.22,171.16,5.8421]
[1746818139375,37.72,171.21,171.16,5.8421]
[1746818139676,80.6207,171.21,171.14,5.8425]
[1746818139876,80.6207,171.21,171.1,1.9435]
[1746818140077,74.78,171.21,171.1,1.9435]
[1746818140684,37.0,171.21,171.1,1.9435]
[1746818140876,37.0,171.25,171.1,358.9435]
[1746818141475,37.0,171.25,171.23,5.8397]
[1746818141874,37.0,171.25,171.16,37.76]
[1746818142075,37.0,171.25,171.16,394.76]
[1746818142380,37.0,171.25,171.16,357.0]
[1746818143379,37.0,171.25,171.17,3.8425]
[1746818143580,37.8,171.28,171.18,1.9974]
[1746818143882,61.14328,171.29,171.18,358.9974]
[1746818144779,24.14328,171.29,171.19,37.0]
[1746818146091,24.14328,171.29,171.28,5.8381]
[1746818146289,504.64,171.35,171.25,37.7]
[1746818146488,504.64,171.35,171.26,37.68]
[1746818146689,504.64,171.35,171.31,5.8369]
[1746818146987,166.77343806,171.4,171.26,37.68]
[1746818147186,5.8348,171.38,171.33,5.8361]
[1746818147390,37.0,171.39,171.26,37.68]
[1746818147586,52.41203571,171.39,171.26,37.68]
[1746818147889,52.41203571,171.39,171.3,5.837]
[1746818148191,5.8355,171.36,171.3,5.837]
[1746818148596,52.41203571,171.39,171.28,5.8379]
[1746818148786,5.8366,171.33,171.28,5.8379]
[1746818149091,52.41203571,171.39,171.26,37.56]
[1746818149389,52.41203571,171.39,171.25,74.54]
[1746818149781,52.41203571,171.39,171.27,5.8383]
[1746818149986,52.41203571,171.39,171.18,888.71433571]
[1746818150188,15.41203571,171.35,171.18,877.03203571]
[1746818150389,5.8374,171.3,171.25,5.8388]
[1746818151593,5.8371,171.31,171.26,5.8387]
[1746818151794,37.0,171.33,171.2,5.6547]
[1746818151990,15.41203571,171.31,171.2,399.6547]
[1746818152195,5.8387,171.27,171.2,5.6547]
[1746818152395,15.41203571,171.31,171.2,5.6547]
[1746818153496,5.8387,171.27,171.22,5.84]
[1746818153895,15.41203571,171.31,171.2,5.6547]
[1746818154096,5.8381,171.28,171.2,6.6547]
[1746818154297,3.8595,171.32,171.2,6.6547]
[1746818154794,37.0,171.33,171.2,6.6547]
[1746818155497,5.837,171.31,171.2,6.6547]
[1746818155699,37.0,171.33,171.2,6.6547]
[1746818155996,5.8375,171.3,171.25,5.839]
[1746818156398,37.0,171.33,171.25,5.839]
[1746818156597,52.41203571,171.33,171.24,5.8393]
[1746818157499,52.41203571,171.33,171.25,5.8391]
[1746818157696,52.41203571,171.33,171.21,37.52]
[1746818157992,52.41203571,171.33,171.24,5.8392]
[1746818158191,52.41203571,171.33,171.2,6.6547]
[1746818158388,15.41203571,171.29,171.2,1.0]
[1746818158992,15.41203571,171.29,171.22,5.8398]
[1746818159593,15.41203571,171.29,171.21,5.8403]
[1746818159798,15.41203571,171.29,171.2,1.0]
[1746818160292,5.8385,171.27,171.23,5.8397]
[1746818160495,15.41203571,171.29,171.2,1.0]
[1746818160892,5.8385,171.27,171.2,1.0]
[1746818161092,15.41203571,171.29,171.2,1.0]
[1746818161899,5.8383,171.28,171.2,1.0]
[1746818162099,52.41203571,171.33,171.2,1.0]
[1746818162401,5.8374,171.3,171.26,5.8385]
[1746818162598,52.41203571,171.33,171.2,358.0]
[1746818162901,15.41203571,171.36,171.21,37.0]
[1746818163095,37.0,171.34,171.21,394.0]
[1746818163292,37.0,171.34,171.22,1.8953]
[1746818163496,5.8369,171.32,171.23,37.18]
[1746818163697,5.8369,171.32,171.23,394.18]
[1746818163899,37.0,171.34,171.23,394.18]
[1746818164203,37.0,171.34,171.28,5.8378]
[1746818164502,15.41203571,171.32,171.23,394.18]
[1746818164703,15.41203571,171.32,171.23,357.0]
[1746818165005,15.41203571,171.32,171.23,362.8395]
[1746818165205,37.0,171.34,171.23,357.0]
[1746818165399,5.8379,171.29,171.25,5.8388]
[1746818165905,5.8381,171.28,171.25,5.8388]
[1746818166101,15.41203571,171.33,171.23,357.0]
[1746818166402,5.8381,171.28,171.23,357.0]
[1746818166603,37.1,171.29,171.23,357.0]
[1746818167205,37.1,171.29,171.25,5.8388]
[1746818167407,37.1,171.29,171.2,358.0]
[1746818168204,42.9378,171.29,171.2,358.0]
[1746818168505,42.9378,171.29,171.25,5.8388]
[1746818168707,5.8384,171.27,171.2,358.0]
[1746818169102,5.8384,171.27,171.23,5.8395]
[1746818169303,5.8382,171.28,171.2,358.0]
[1746818169608,5.8382,171.28,171.24,5.8392]
[1746818170008,37.1,171.29,171.2,358.0]
[1746818170200,37.1,171.29,171.27,5.8381]
[1746818170406,37.1,171.29,171.2,358.0]
[1746818170911,37.1,171.29,171.26,5.8385]
[1746818171312,5.8376,171.3,171.26,5.8385]
[1746818171611,5.8371,171.31,171.27,5.8383]
[1746818172109,5.8371,171.31,171.2,358.0]
[1746818172110,5.8371,171.31,171.28,5.838]
[1746818172310,5.8371,171.31,171.2,358.0]
[1746818172515,5.8374,171.3,171.2,358.0]
[1746818172719,15.4150042,171.32,171.2,358.0]
[1746818173208,52.5144507,171.33,171.24,5.8392]
[1746818173405,52.5144507,171.33,171.2,1.0]
[1746818173603,52.5144507,171.33,171.25,5.8388]
[1746818173604,5.838,171.29,171.25,5.8388]
[1746818174014,37.1,171.31,171.25,5.8388]
[1746818174313,37.1,171.31,171.27,5.8382]
[1746818174916,42.9372,171.31,171.27,5.8382]
[1746818175416,37.1,171.31,171.29,5.8376]
[1746818175619,37.1,171.31,171.2,1.0]
[1746818176218,42.9371,171.31,171.2,1.0]
[1746818176415,37.1,171.31,171.2,1.0]
[1746818177217,42.9371,171.31,171.2,1.0]
[1746818177718,37.1,171.31,171.28,5.838]
[1746818177921,37.1,171.31,171.2,1.0]
[1746818178726,52.5056889,171.34,171.2,38.1]
[1746818178926,5.8373,171.31,171.21,36.46]
[1746818179727,5.8374,171.3,171.21,36.46]
[1746818179928,37.1,171.34,171.24,5.8392]
[1746818180124,5.8384,171.27,171.21,36.42]
[1746818180320,15.40829143,171.32,171.21,36.42]
[1746818180627,5.8385,171.27,171.23,5.8395]
[1746818180929,52.51214805,171.34,171.21,36.42]
[1746818181229,5.8381,171.28,171.24,5.8392]
[1746818181925,36.28,171.31,171.2,38.1]
[1746818182422,5.839,171.26,171.22,5.8401]
[1746818182622,37.1,171.28,171.2,1.0]
[1746818183829,37.1,171.28,171.22,5.84]
[1746818184032,37.1,171.28,171.2,1.0]
[1746818184331,37.1,171.28,171.22,5.84]
[1746818184630,15.41214805,171.26,171.2,1.0]
[1746818185129,5.8403,171.22,171.2,1.0]
[1746818185324,36.22,171.26,171.2,1.0]
[1746818186231,21.03914805,171.3,171.2,1.0]
[1746818186529,37.1,171.29,171.2,1.0]
[1746818186728,541.66,171.32,171.2,1.0]
[1746818186931,541.66,171.32,171.21,1.8772]
[1746818187121,5.8375,171.3,171.21,1.8772]
[1746818187327,541.66,171.32,171.21,1.8772]
[1746818187924,5.8386,171.27,171.21,1.8772]
[1746818188126,36.06,171.31,171.21,1.8772]
[1746818188327,5.8386,171.27,171.23,5.8396]
[1746818188627,38.0032,171.31,171.23,5.8396]
[1746818188937,5.8388,171.26,171.23,5.8396]
[1746818190129,5.8385,171.27,171.24,5.8394]
[1746818190329,38.0032,171.31,171.2,1.0]
[1746818190730,38.0032,171.31,171.24,5.8392]
[1746818191132,5.8382,171.28,171.2,1.0]
[1746818191822,5.8384,171.27,171.2,1.0]
[1746818192028,38.0032,171.31,171.24,5.8392]
[1746818192329,1.9432,171.31,171.2,1.0]
[1746818192530,541.66,171.32,171.2,1.0]
[1746818193430,5.8372,171.31,171.2,1.0]
[1746818193933,5.8372,171.31,171.27,5.8383]
[1746818194132,5.8374,171.3,171.27,5.8383]
[1746818194327,5.8374,171.3,171.2,1.0]
[1746818194730,541.66,171.32,171.2,1.0]
[1746818194932,541.66,171.32,171.21,35.54]
[1746818195435,5.8379,171.29,171.25,5.839]
[1746818195733,541.66,171.32,171.25,5.839]
[1746818196034,5.8379,171.29,171.25,5.839]
[1746818196437,541.66,171.32,171.21,35.54]
[1746818196634,37.1,171.32,171.21,35.54]
[1746818196835,3.8267,171.35,171.21,35.54]
[1746818197332,5.8362,171.34,171.21,35.54]
[1746818197636,3.8267,171.35,171.21,35.54]
[1746818198529,5.8365,171.33,171.29,5.8376]
[1746818198932,5.8359,171.35,171.24,35.84]
[1746818199137,5.8359,171.35,171.25,5.8525]
[1746818199335,35.84,171.36,171.26,35.2]
[1746818199532,35.84,171.36,171.33,5.8361]
[1746818199733,35.84,171.36,171.26,35.2]
[1746818199934,35.2,171.38,171.26,35.2]
[1746818200139,41.0347,171.38,171.26,35.2]
[1746818200432,35.2,171.38,171.26,35.2]
[1746818200633,35.2,171.38,171.35,5.8355]
[1746818200836,5.8345,171.39,171.35,5.8355]
[1746818201226,5.8347,171.38,171.34,5.8358]
[1746818201629,504.58,171.4,171.29,35.82]
[1746818201837,5.8343,171.39,171.35,5.8355]
[1746818202333,5.8343,171.39,171.36,5.8353]
[1746818202536,510.4141,171.4,171.36,5.8353]
[1746818202737,510.4141,171.4,171.29,35.82]
[1746818203031,5.8333,171.42,171.29,35.82]
[1746818203231,39.753,171.43,171.29,35.82]
[1746818203737,55.16514805,171.43,171.29,35.82]
[1746818204626,5.8345,171.39,171.35,5.8356]
[1746818204936,55.16514805,171.43,171.29,35.82]
[1746818205136,5.8344,171.39,171.34,5.8358]
[1746818205437,55.16514805,171.43,171.34,5.8358]
[1746818205636,5.8347,171.38,171.34,5.8358]
[1746818206236,5.835,171.37,171.34,5.8358]
[1746818206634,55.16514805,171.43,171.29,70.64]
[1746818207525,5.8348,171.38,171.29,70.64]
[1746818207726,55.16514805,171.43,171.29,70.64]
[1746818208041,5.8346,171.39,171.29,70.64]
[1746818208937,5.8341,171.4,171.29,70.64]
[1746818209335,34.74,171.42,171.29,70.64]
[1746818209632,5.8345,171.39,171.29,70.64]
[1746818209836,5.8345,171.39,171.35,5.8353]
[1746818211036,5.8345,171.39,171.36,5.8353]
[1746818211241,5.8339,171.41,171.29,70.64]
[1746818211436,3.933,171.43,171.29,86.05214805]
[1746818211629,34.54,171.44,171.39,5.8341]
[1746818211834,40.3727,171.44,171.29,86.05214805]
[1746818212035,40.3727,171.44,171.39,5.834]
[1746818212235,34.54,171.44,171.34,34.6]
[1746818212435,34.54,171.44,171.35,40.3197]
[1746818212639,34.54,171.44,171.39,5.8341]
[1746818213041,34.54,171.44,171.35,40.3197]
[1746818213440,38.2935,171.47,171.35,40.3197]
[1746818213833,34.54,171.47,171.43,5.8327]
[1746818214235,34.54,171.47,171.35,40.3197]
[1746818215344,40.3716,171.47,171.35,40.3197]
[1746818215741,40.3716,171.47,171.42,5.833]
[1746818216041,34.54,171.47,171.35,40.3197]
[1746818216440,34.54,171.47,171.41,5.8334]
[1746818216744,5.8324,171.45,171.41,5.8334]
[1746818217144,5.832,171.46,171.42,5.8333]
[1746818219051,40.3717,171.47,171.43,5.8329]
[1746818219651,5.832,171.46,171.43,5.8329]
[1746818219951,34.54,171.47,171.45,5.8322]
[1746818220152,40.3505,171.51,171.39,34.14]
[1746818220353,34.52,171.51,171.39,34.14]
[1746818221150,34.52,171.51,171.43,5.8327]
[1746818221151,5.8318,171.47,171.43,5.8327]
[1746818221552,34.52,171.51,171.37,34.22]
[1746818221746,5.834,171.4,171.37,5.8349]
[1746818222549,68.72,171.43,171.32,34.52]
[1746818223250,15.41214805,171.42,171.3,5.6061]
[1746818223554,5.8353,171.37,171.29,69.62]
[1746818223955,15.41214805,171.42,171.29,69.62]
[1746818224653,15.41214805,171.42,171.29,35.52]
[1746818224851,15.41214805,171.42,171.31,5.8369]
[1746818225155,15.41214805,171.42,171.29,35.52]
[1746818225352,5.8356,171.36,171.29,35.52]
[1746818225553,34.52,171.37,171.29,35.52]
[1746818225751,68.84,171.38,171.29,35.52]
[1746818225953,5.8353,171.36,171.33,5.8363]
[1746818226249,68.84,171.38,171.33,5.8363]
[1746818226755,5.8352,171.37,171.33,5.8363]
[1746818226955,68.84,171.38,171.33,5.8363]
[1746818227150,68.84,171.38,171.34,5.836]
[1746818227350,5.8353,171.37,171.34,5.836]
[1746818230649,68.84,171.38,171.29,1.0]
[1746818231853,74.6747,171.38,171.29,1.0]
[1746818232358,68.84,171.38,171.33,5.8363]
[1746818232659,68.84,171.38,171.29,1.0]
[1746818232856,68.84,171.38,171.33,5.8361]
[1746818233060,34.52,171.38,171.33,5.8361]
[1746818233261,34.52,171.38,171.29,1.0]
[1746818233461,40.3549,171.38,171.32,5.8364]
[1746818233657,40.3549,171.38,171.29,1.0]
[1746818233858,34.52,171.38,171.29,1.0]
[1746818234159,5.836,171.35,171.29,1.0]
[1746818234562,5.8361,171.34,171.29,6.8375]
[1746818234963,21.04264805,171.37,171.29,6.8375]
[1746818235363,21.04264805,171.37,171.29,1.0]
[1746818235865,5.8366,171.33,171.29,1.0]
[1746818236063,40.3766,171.33,171.29,1.0]
[1746818236463,40.3766,171.33,171.29,6.8376]
[1746818236663,34.54,171.33,171.29,6.8376]
[1746818237358,21.04264805,171.37,171.29,1.0]
[1746818237561,68.02,171.36,171.29,1.0]
[1746818237965,34.54,171.36,171.29,1.0]
[1746818238868,34.54,171.36,171.35,5.8357]
[1746818240462,34.54,171.36,171.34,5.8359]
[1746818241068,34.54,171.36,171.35,5.8357]
[1746818243666,34.54,171.36,171.29,1.0]
[1746818244069,3.6972,171.35,171.29,1.0]
[1746818244372,33.28,171.34,171.29,1.0]
[1746818244965,5.8373,171.31,171.29,1.0]
[1746818245166,33.28,171.3,171.29,6.8377]
[1746818248371,66.56,171.34,171.29,1.0]
[1746818249071,66.56,171.34,171.32,5.8365]
[1746818249574,66.56,171.34,171.29,1.0]
[1746818249768,66.56,171.34,171.31,5.8367]
[1746818249968,66.56,171.34,171.29,1.0]
[1746818250170,66.56,171.34,171.31,5.8368]
[1746818251173,66.56,171.34,171.32,5.8366]
[1746818251573,66.56,171.34,171.29,1.0]
[1746818251768,66.56,171.34,171.33,5.8363]
[1746818252073,33.28,171.34,171.33,5.8363]
[1746818253868,33.28,171.34,171.31,5.8367]
[1746818254173,33.28,171.34,171.29,1.0]
[1746818254576,33.28,171.34,171.33,5.8363]
[1746818256670,33.28,171.34,171.29,1.0]
[1746818256671,33.28,171.34,171.32,5.8366]
[1746818257175,33.28,171.34,171.29,1.0]
[1746818258475,33.28,171.34,171.33,5.8363]
[1746818258875,33.28,171.34,171.29,1.0]
[1746818259175,33.28,171.34,171.32,5.8365]
[1746818259775,33.28,171.34,171.33,5.8363]
[1746818262173,65.8,171.4,171.29,1.0]
[1746818262379,65.8,171.4,171.3,5.639]
[1746818262677,65.8,171.4,171.37,5.8347]
[1746818262873,33.28,171.4,171.37,5.8347]
[1746818263073,33.28,171.4,171.3,38.139]
[1746818263279,39.114,171.4,171.36,5.8351]
[1746818263474,39.114,171.4,171.3,38.139]
[1746818264278,39.114,171.4,171.36,5.8351]
[1746818264578,33.28,171.4,171.3,38.139]
[1746818264778,33.28,171.4,171.33,5.8362]
[1746818264973,33.28,171.4,171.3,38.139]
[1746818265474,33.28,171.4,171.34,5.8358]
[1746818265677,33.28,171.4,171.3,38.139]
[1746818266680,5.8344,171.39,171.36,5.8353]
[1746818267279,5.8346,171.38,171.35,5.8356]
[1746818267584,33.28,171.4,171.3,5.639]
[1746818267881,5.835,171.37,171.34,5.836]
[1746818268782,5.835,171.37,171.35,5.8356]
[1746818268985,33.28,171.4,171.3,5.639]
[1746818269283,33.28,171.4,171.36,5.8352]
[1746818269781,5.8344,171.39,171.36,5.8352]
[1746818270283,5.8344,171.39,171.37,5.8349]
[1746818270784,5.8344,171.39,171.36,5.8352]
[1746818270988,33.28,171.4,171.3,5.639]
[1746818271782,33.28,171.4,171.33,5.8363]
[1746818271783,15.41214805,171.39,171.33,5.8363]
[1746818271982,15.41214805,171.39,171.29,1.0]
[1746818272384,5.8359,171.35,171.32,5.8367]
[1746818272586,69.8759,171.35,171.32,5.8367]
[1746818272975,5.8361,171.34,171.32,5.8367]
[1746818273179,5.8361,171.34,171.31,5.8369]
[1746818275290,5.8361,171.34,171.29,1.0]
[1746818275786,9.63182178,171.32,171.29,1.0]
[1746818276282,5.8372,171.31,171.29,1.0]
[1746818277090,15.46862178,171.32,171.29,1.0]
[1746818277387,9.63182178,171.32,171.29,1.0]
[1746818277587,5.8374,171.3,171.29,1.0]
[1746818277788,9.63182178,171.32,171.29,1.0]
[1746818278188,5.8374,171.3,171.29,1.0]
[1746818278589,9.63182178,171.32,171.29,1.0]
[1746818279491,5.8372,171.31,171.29,1.0]
[1746818280894,5.8372,171.31,171.29,6.8376]
[1746818281291,13.44962178,171.34,171.29,1.0]
[1746818282295,5.8364,171.33,171.29,1.0]
[1746818282495,13.44962178,171.34,171.29,1.0]
[1746818282795,19.28572178,171.34,171.31,5.8368]
[1746818283898,63.78,171.35,171.29,1.0]
[1746818284297,63.78,171.35,171.33,5.8362]
[1746818284499,32.04,171.35,171.29,1.0]
[1746818284698,9.63182178,171.4,171.29,1.0]
[1746818284899,9.63182178,171.4,171.29,6.5691]
[1746818284900,32.04,171.38,171.29,6.5691]
[1746818285597,32.04,171.38,171.35,5.8354]
[1746818285800,32.04,171.38,171.29,6.5691]
[1746818286199,5.835,171.37,171.33,5.836]
[1746818286398,32.04,171.38,171.29,6.5691]
[1746818286999,5.8354,171.36,171.32,5.8364]
[1746818287303,32.04,171.38,171.32,5.8364]
[1746818287501,32.04,171.38,171.29,6.5691]
[1746818287502,9.63182178,171.34,171.29,1.0]
[1746818287805,32.04,171.33,171.29,1.0]
[1746818288104,5.8372,171.31,171.29,1.0]
[1746818288606,32.04,171.33,171.29,1.0]
[1746818291004,32.04,171.33,171.32,5.8367]
[1746818292910,32.04,171.37,171.35,5.8355]
[1746818293203,32.04,171.37,171.29,6.7862]
[1746818293801,32.04,171.41,171.3,32.04]
[1746818293994,32.04,171.41,171.31,31.34]
[1746818294407,32.04,171.41,171.4,5.834]
[1746818294605,32.04,171.41,171.31,31.34]
[1746818295208,32.04,171.41,171.4,5.834]
[1746818295405,32.04,171.41,171.31,31.34]
[1746818295799,32.04,171.41,171.29,6.7862]
[1746818295999,32.04,171.41,171.31,31.34]
[1746818296200,5.8341,171.4,171.36,5.8353]
[1746818296801,32.04,171.41,171.31,31.34]
[1746818297007,5.8343,171.39,171.35,5.8356]
[1746818297496,5.8343,171.39,171.36,5.8353]
[1746818298105,5.834,171.4,171.37,5.8349]
[1746818298309,32.04,171.41,171.31,31.34]
[1746818298803,32.04,171.41,171.38,5.8344]
[1746818299308,37.8736,171.41,171.38,5.8344]
[1746818300802,5.834,171.4,171.37,5.8349]
[1746818301305,32.04,171.41,171.37,5.8349]
[1746818301610,5.8343,171.4,171.37,5.8349]
[1746818301910,5.8343,171.4,171.36,5.8352]
[1746818302108,5.8343,171.4,171.31,31.34]
[1746818302312,63.06,171.41,171.31,31.34]
[1746818302706,15.41119794,171.37,171.29,1.0]
[1746818302907,62.2,171.36,171.29,1.0]
[1746818303205,5.8369,171.32,171.29,1.0]
[1746818303403,62.2,171.36,171.29,1.0]
[1746818303606,62.2,171.36,171.31,5.837]
[1746818303809,5.8362,171.34,171.31,5.837]
[1746818305709,68.0355,171.36,171.33,5.8363]
[1746818305914,31.08,171.38,171.29,1.0]
[1746818307114,31.08,171.38,171.3,5.6171]
[1746818308119,504.36,171.39,171.37,5.8348]
[1746818308416,31.08,171.4,171.3,5.6171]
[1746818308616,31.08,171.4,171.31,31.08]
[1746818308813,36.9127,171.44,171.31,31.08]
[1746818309417,5.8333,171.42,171.31,31.08]
[1746818309927,5.8333,171.42,171.38,5.8344]
[1746818310124,5.8333,171.42,171.34,30.98]
[1746818310929,31.08,171.44,171.34,30.98]
[1746818311223,31.08,171.44,171.34,5.8359]
[1746818311428,5.8349,171.38,171.34,5.8359]
[1746818312230,5.835,171.37,171.3,5.6171]
[1746818312428,31.08,171.39,171.3,5.6171]
[1746818312726,31.08,171.39,171.34,5.8357]
[1746818312927,5.8349,171.38,171.34,5.8357]
[1746818313226,5.8349,171.38,171.35,5.8355]
[1746818313628,36.9144,171.39,171.35,5.8355]
[1746818313828,31.08,171.39,171.35,5.8355]
[1746818314224,36.9144,171.39,171.35,5.8355]
[1746818314430,36.9144,171.39,171.36,5.8352]
[1746818315734,31.08,171.39,171.37,5.8349]
[1746818316029,31.08,171.39,171.3,5.6171]
[1746818316331,1.9047,171.43,171.3,5.6171]
[1746818316332,36.913,171.43,171.4,5.8338]
[1746818317030,31.08,171.43,171.41,5.8336]
[1746818318333,31.08,171.43,171.4,5.8339]
[1746818318531,36.913,171.43,171.34,30.84]
[1746818318831,31.08,171.43,171.34,30.84]
[1746818319131,31.08,171.43,171.41,5.8334]
[1746818319331,31.08,171.43,171.34,30.84]
[1746818319633,31.08,171.43,171.4,5.8338]
[1746818320632,31.08,171.43,171.41,5.8335]
[1746818320833,36.9129,171.44,171.41,5.8335]
[1746818322132,19.20299794,171.49,171.34,30.84]
[1746818322329,31.08,171.46,171.34,30.84]
[1746818322524,31.08,171.51,171.38,15.41119794]
[1746818322731,31.08,171.51,171.39,67.3471]
[1746818323235,31.08,171.51,171.48,5.8312]
[1746818323435,31.08,171.51,171.39,79.0154]
[1746818324237,31.08,171.51,171.49,5.8309]
[1746818324640,30.64,171.54,171.44,30.62]
[1746818325235,541.1889,171.55,171.44,61.7]
[1746818325541,5.8293,171.54,171.44,61.7]
[1746818325839,5.8293,171.54,171.49,5.8306]
[1746818326240,5.8293,171.54,171.44,61.7]
[1746818326538,550.77119794,171.55,171.42,30.58]
[1746818326736,550.77119794,171.55,171.41,31.08]
[1746818326935,550.77119794,171.55,171.44,5.8325]
[1746818326936,5.8313,171.48,171.44,5.8325]
[1746818327543,5.8316,171.47,171.43,5.8328]
[1746818328543,5.8316,171.47,171.41,31.08]
[1746818328843,5.8314,171.48,171.41,31.08]
[1746818329046,5.8314,171.48,171.39,5.6071]
[1746818329242,5.8314,171.48,171.43,5.8327]
[1746818329747,5.8314,171.48,171.44,5.8324]
[1746818330440,5.8314,171.48,171.45,5.8322]
[1746818330642,36.911,171.49,171.45,5.8322]
[1746818330842,31.08,171.49,171.42,0.60843]
[1746818331643,1.8622,171.48,171.42,6.44153]
[1746818331840,5.832,171.46,171.42,6.44153]
[1746818332144,1.8622,171.48,171.43,5.8327]
[1746818332640,5.8321,171.46,171.43,5.8327]
[1746818332944,5.8321,171.46,171.42,0.60843]
[1746818333344,5.8323,171.45,171.42,0.60843]
[1746818333846,1.8622,171.48,171.43,5.8329]
[1746818334147,1.8622,171.48,171.42,0.60843]
[1746818334544,15.41119794,171.47,171.42,0.60843]
[1746818334948,5.8329,171.43,171.42,0.60843]
[1746818335249,30.54,171.43,171.34,5.6569]
[1746818335546,5.8335,171.42,171.38,5.8346]
[1746818335847,30.54,171.43,171.38,5.8346]
[1746818337144,5.8335,171.42,171.38,5.8346]
[1746818337345,5.8335,171.42,171.34,5.6569]
[1746818337845,30.54,171.43,171.38,5.8344]